Cogmind - Beta 11.1 @@@ ROGUE MODE // 2022.10.07 @ 16:40:34 Player: HeartGrenade Result: Destroyed by H-66 Slayer with Gauss Rifle Performance ------------- Evolutions (4) 2000 Regions Visited (14) 2800 Robots Destroyed (237) 1185 Value Destroyed (8358) 8358 Prototype IDs (13) 260 Alien Tech Used (0) 0 Bonus (3686) 3686 TOTAL SCORE: 18289 Bonus ------- High Alert Combat Kills 1089 Follower Combat Kills 1667 Built Enhanced Grunts 300 A7 Reached Mainframe 300 Met R17 at Cetus 500 Friendly Fire -170 Cogmind --------- Core Integrity 0/850 Matter 251/300 Energy 18/100 System Corruption 10% Temperature Cool (0) Movement Core (50) Location -6/Hub_04(d) Parts ------- > --- POWER (2) -------- (None) > --- PROPULSION (5) --- (None) > --- UTILITY (5) ------ (None) > --- WEAPON (3) ------- (None) > --- INVENTORY (5) ---- Quantum Reactor Improved Cooling System Advanced Terrain Scanner Improved Hacking Suite Heavy Missile Launcher Peak State ------------ > --- POWER ------------ Angular Momentum Engine Quantum Reactor > --- PROPULSION ------- Improved Carbon-fiber Leg Flexi-carbon Leg Flexi-carbon Leg Flexi-carbon Leg Enhanced Flexi-carbon Leg > --- UTILITY ---------- Improved Cooling System Large Storage Unit Advanced Terrain Scan Processor Centrium Medium Armor Plating Thermal Shield > --- WEAPON ----------- Advanced Beam Rifle Advanced Variable Charge Gun Advanced Variable Charge Gun > --- INVENTORY -------- Quantum Reactor Flexi-carbon Leg Flexi-carbon Leg Improved Cooling System Advanced Terrain Scanner Seismic Detector Medium Reactive Plating EM Disruption Field Authchip [Armor] Dynamic Insulation System Gatling Laser Improved Grenade Launcher Heavy Missile Launcher Phasing Sabre [Rating: 89] Favorites ----------- Power Deuterium Engine Engine Deuterium Engine Power Core Light Fission Core Reactor Quantum Reactor Propulsion Armored Treads Treads Armored Treads Leg Titanium Leg Utility Large Storage Unit Device Improved Heat Sink Storage Large Storage Unit Processor Advanced Terrain Scan Processor Hackware Hacking Suite Protection Medium Reactive Plating Weapon Precision Beam Rifle Energy Gun Precision Beam Rifle Energy Cannon Light EM Pulse Cannon Ballistic Gun Enhanced Autogun Launcher Improved Grenade Launcher Slashing Weapon Katana Special Melee Weapon Advanced Datajack Build | -11 -10 -9 -9 -9 -8 -8 -7 -7 -7 -6 -6 -6 -6 -6 ------- Run | Scr Mat Mat Min Exi Min Mat Fac Was Fac Fac Ext Cet Arc Hub Slots Evolved 8 | . . 2 . . . 2 2 . . 2 . . . . Power 1 | . . . . . . . . . . 1 . . . . Propulsion 3 | . . . . . . 1 1 . . 1 . . . . Utility 3 | . . 2 . . . . 1 . . . . . . . Weapon 1 | . . . . . . 1 . . . . . . . . Parts Attached 191 | 3 7 25 4 . 4 28 26 2 12 22 14 9 7 28 Power 16 | 1 1 4 . . . 2 1 . 1 3 . 1 1 1 Engine 13 | 1 1 4 . . . 2 1 . 1 2 . . 1 . Core 1 | . . . . . . . . . . 1 . . . . Reactor 2 | . . . . . . . . . . . . 1 . 1 Propulsion 39 | 2 2 2 . . 2 7 2 . . 7 6 2 . 7 Treads 12 | 2 2 2 . . 2 4 . . . . . . . . Leg 27 | . . . . . . 3 2 . . 7 6 2 . 7 Wheel . | . . . . . . . . . . . . . . . Hover . | . . . . . . . . . . . . . . . Flight . | . . . . . . . . . . . . . . . Utility 64 | . 2 11 2 . 1 7 9 1 6 7 4 2 2 10 Device 36 | . 1 3 . . 1 4 6 1 3 4 4 . 2 7 Storage 5 | . 1 2 . . . . . . 1 1 . . . . Processor 7 | . . 1 1 . . 1 2 . 1 . . . . 1 Hackware 1 | . . . . . . . . . . . . 1 . . Protection 15 | . . 5 1 . . 2 1 . 1 2 . 1 . 2 Artifact . | . . . . . . . . . . . . . . . Weapon 72 | . 2 8 2 . 1 12 14 1 5 5 4 4 4 10 Energy Gun 35 | . 1 5 1 . 1 4 6 1 . 3 3 3 2 5 Energy Cannon 1 | . . . . . . . . . 1 . . . . . Ballistic Gun 18 | . 1 3 . . . 5 4 . 3 . . . . 2 Ballistic Cannon . | . . . . . . . . . . . . . . . Launcher 4 | . . . 1 . . 1 . . . 1 . 1 . . Special Weapon . | . . . . . . . . . . . . . . . Impact Weapon . | . . . . . . . . . . . . . . . Slashing Weapon 13 | . . . . . . 2 4 . 1 1 1 . 1 3 Piercing Weapon . | . . . . . . . . . . . . . . . Special Melee Weapon 1 | . . . . . . . . . . . . . 1 . Unidentified Prototypes 10 | . . 2 . . . 2 3 . . . . 3 . . Corrupted Parts 1 | . . . . . . . . . . . . 1 . . System Corruption 5 | . . . . . . . . . . . . 5 . . Parts Lost 43 | . 2 2 . . 4 3 3 . 3 7 . . . 19 Power 7 | . 1 . . . . 1 1 . 1 1 . . . 2 Propulsion 12 | . 1 . . . 2 . . . . 3 . . . 6 Utility 10 | . . 1 . . 1 . 2 . 2 1 . . . 3 Weapon 14 | . . 1 . . 1 2 . . . 2 . . . 8 Highest Loss Streak 5 | . 1 1 . . 3 2 1 . 3 4 . . . 5 To Critical Strikes . | . . . . . . . . . . . . . . . Average Slot Usage (%) 96 | . 76 97 100 100 90 98 99 100 98 94 99 100 99 84 Engine 9 | . 12 11 11 11 11 8 6 7 6 6 13 11 5 3 Treads 12 | . 22 21 22 22 16 22 . . . . . . . . Leg 14 | . . . . . . 4 30 30 30 29 32 33 33 25 Device 13 | . 7 12 11 11 18 17 14 15 10 12 13 7 12 9 Storage 8 | . 6 11 11 11 11 9 7 7 7 6 6 6 6 6 Processor 5 | . . 5 11 11 1 . 7 7 9 6 6 6 6 9 Protection 7 | . . 13 11 11 11 9 6 7 7 5 6 6 6 5 Energy Gun 16 | . 13 12 21 22 21 16 15 15 15 17 18 19 14 11 Ballistic Gun 5 | . 13 9 . . . 8 4 . 4 . . . . 1 Slashing Weapon 1 | . . . . . . 1 1 7 2 1 . . 4 2 Naked Turns 3 | . . . . . . . . . . . . . . 3 Heaviest Build 87 | 3 27 41 43 38 39 59 61 59 79 80 80 87 75 74 Greatest Support 106 | 3 40 40 40 40 40 63 69 69 69 98 101 106 106 106 Greatest Overweight (x) 1 | . 1 1 1 . 1 1 . . 1 1 1 . . 1 Average Overweight (x) . | . . . . . . . . . . . . . . . Largest Inventory Capacity 25 | 5 15 25 15 15 15 15 15 15 15 15 15 15 15 15 Average Capacity 14 | 5 9 15 15 15 15 15 15 15 15 15 15 15 15 14 Most Carried 15 | 3 9 15 15 15 15 15 15 15 15 15 15 15 15 15 Average Carried 13 | 1 5 14 15 15 13 14 14 15 14 14 14 14 14 12 Final Capacity 15 | 5 15 15 15 15 15 15 15 15 15 15 15 15 15 5 Final Carried 15 | 3 9 15 15 15 12 15 15 15 15 15 15 15 15 5 Class Distribution -------------------- 40% | Mutant 25% | Tank 13% | Scavenger-Mutant 11% | Scavenger-Tank 3% | Skirmisher Dominant Class ---------------- Mutant | -10/Materials Mutant | -9/Materials Mutant | -9/Mines Mutant | -9/Exiles Mutant | -8/Mines Tank | -8/Materials Tank | -7/Factory Mutant | -7/Waste Mutant | -7/Factory Skirmisher | -6/Factory Commander-Tank | -6/Extension Scavenger-Tank | -6/Cetus Scavenger-Mutant | -6/Archives Scavenger-Mutant | -6/Hub_04(d) Resources | -11 -10 -9 -9 -9 -8 -8 -7 -7 -7 -6 -6 -6 -6 -6 ----------- Run | Scr Mat Mat Min Exi Min Mat Fac Was Fac Fac Ext Cet Arc Hub Matter Collected 3506 | 230 189 417 53 . 35 697 558 . 285 243 280 163 59 297 Remotely . | . . . . . . . . . . . . . . . Salvage Created 9863 | . 520 1361 268 . 398 2271 1832 . 450 920 462 136 455 790 Parts 533 | . 39 87 25 . 16 123 80 . 21 46 22 12 28 34 Haulers Intercepted 11 | . 1 2 . . . 6 2 . . . . . . . Recyclers Shooed 2 | . . . . . . . 1 . . 1 . . . . Parts Field Recycled . | . . . . . . . . . . . . . . . Retrieved Matter . | . . . . . . . . . . . . . . . Parts Self-Destructed . | . . . . . . . . . . . . . . . Prevented . | . . . . . . . . . . . . . . . Kills | -11 -10 -9 -9 -9 -8 -8 -7 -7 -7 -6 -6 -6 -6 -6 ------- Run | Scr Mat Mat Min Exi Min Mat Fac Was Fac Fac Ext Cet Arc Hub Combat Hostiles Destroyed 176 | . 14 27 7 . 6 40 31 . 5 18 7 4 2 15 Melee 3 | . . . . . . . . . . . 1 . . 2 Guns 160 | . 14 27 5 . 6 39 31 . 5 13 5 1 1 13 AOE 10 | . . . 2 . . . . . . 5 . 3 . . Classes Destroyed 18 | . 5 5 . . . 5 1 . . . 1 . . 1 Worker 9 | . 2 1 . . 1 2 1 . 1 . . . . 1 Builder 5 | . . 1 1 . . 1 . . 1 . 1 . . . Tunneler 12 | . . 3 3 . . . 5 . 1 . . . . . Hauler 11 | . 1 2 . . . 6 2 . . . . . . . Recycler 5 | . . 1 . . 1 . 1 . 1 1 . . . . Operator 12 | . . . . . . 1 . . . . . . 9 2 Watcher 7 | . 1 1 . . . 2 1 . 1 . . 1 . . Swarmer 29 | . 6 3 4 . . 7 . . . 4 . 3 . 2 Saboteur 1 | . . . . . . . . . . . . . . 1 Grunt 87 | . 8 16 3 . 5 17 21 . 3 3 3 . . 8 Brawler 7 | . . . . . . 2 1 . 1 2 . . . 1 Duelist 4 | . . 1 . . 1 1 1 . . . . . . . Sentry 29 | . . 7 . . . 9 4 . . 2 3 . 2 2 Specialist 6 | . . . . . . 2 . . . 4 . . . . Hunter 6 | . . . . . . 1 1 . . 2 . 1 . 1 Programmer 5 | . . . . . . . 3 . 1 1 . . . . Heavy 1 | . . . . . . 1 . . . . . . . . Behemoth 1 | . . . . . . . . . . . 1 . . . Best Kill Streak 8 | . 4 4 4 . 5 5 6 . 2 8 2 3 4 4 Combat Bots Only 8 | . 4 3 4 . 3 4 6 . 2 8 2 3 2 4 Max Kills in Single Turn 3 | . 2 2 2 . 2 2 1 . 1 2 1 3 1 2 Gunslinging 1 | . 1 . . . 1 1 . . . 1 . . . 1 Exploded 3 | . . . 2 . . . . . . 2 . 3 . . Melee 1 | . . . . . . . . . . . 1 . . 1 Uniques/NPCs Destroyed . | . . . . . . . . . . . . . . . Combat | -11 -10 -9 -9 -9 -8 -8 -7 -7 -7 -6 -6 -6 -6 -6 -------- Run | Scr Mat Mat Min Exi Min Mat Fac Was Fac Fac Ext Cet Arc Hub Damage Taken 11249 | . 549 1540 172 . 457 1425 1102 . 532 1502 313 384 418 2855 Core 1845 | . 92 269 13 . 77 337 158 . 49 195 28 61 105 461 Absorbed by Shields 207 | . . . . . . . 12 . . . 118 77 . . Redirected to Shielding 34 | . . 34 . . . . . . . . . . . . Regen/Repaired (Parts) 426 | . 79 . . . . 262 . . . 85 . . . . Core Remaining (%) 56 | 100 63 . . . 10 38 . . 70 . . . . . Volleys Fired 504 | . 43 81 18 . 20 111 77 . 21 37 22 12 12 50 Largest 3 | . 2 2 2 . 2 3 3 . 3 3 3 3 3 3 Hottest 240 | . 60 126 112 . 119 151 202 . 141 196 196 221 221 240 Shots Fired 1229 | . 86 162 35 . 39 310 220 . 54 101 66 31 26 99 Gun 1222 | . 86 162 34 . 39 309 220 . 54 97 66 30 26 99 Cannon . | . . . . . . . . . . . . . . . Launcher 7 | . . . 1 . . 1 . . . 4 . 1 . . Special . | . . . . . . . . . . . . . . . Kinetic 329 | . 43 73 . . . 104 69 . 18 . . . . 22 Thermal 893 | . 43 89 34 . 39 205 151 . 36 97 66 30 26 77 Explosive 7 | . . . 1 . . 1 . . . 4 . 1 . . Electromagnetic . | . . . . . . . . . . . . . . . Robot Hit Streak 23 | . 11 23 6 . 8 19 20 . 11 20 16 14 6 12 Robot Miss Streak 6 | . 6 2 3 . 2 3 2 . 1 3 3 4 3 4 Penetration Max 1 | . . . . . . . . . . . . . . 1 Secondary Targets 24 | . 1 5 1 . 2 6 3 . 1 3 1 . . 1 Max Gunslinging Chain 2 | . 1 1 1 . 1 2 1 . 1 1 1 . . 1 Shots Hit Robots 942 | . 60 131 22 . 31 221 181 . 44 79 54 17 29 73 Core Hits 458 | . 28 52 12 . 14 88 98 . 15 46 32 8 11 54 Critical Kills . | . . . . . . . . . . . . . . . Critical Parts Destroyed 3 | . . 1 . . . 1 . . 1 . . . . . Critical Strikes 40 | . . 3 3 . 2 15 5 . 4 3 2 1 1 1 Burn 37 | . . 2 3 . 2 14 5 . 3 3 2 1 1 1 Destroy 3 | . . 1 . . . 1 . . 1 . . . . . Melee Attacks 48 | . . . . . . 5 10 . 3 5 1 . 15 9 Impact . | . . . . . . . . . . . . . . . Slashing 47 | . . . . . . 5 10 . 3 5 1 . 14 9 Piercing . | . . . . . . . . . . . . . . . Sneak Attacks 17 | . . . . . . 2 3 . 1 . . . 11 . Combat Hostiles . | . . . . . . . . . . . . . . . Follow-up Attacks . | . . . . . . . . . . . . . . . Damage Inflicted 19775 | . 725 1981 555 . 540 3944 3732 . 897 2041 1231 567 1615 1947 Guns 17013 | . 725 1981 384 . 540 3818 3540 . 772 1443 1190 417 456 1747 Cannons . | . . . . . . . . . . . . . . . Explosions 919 | . . . 171 . . . . . . 598 . 150 . . Melee 1838 | . . . . . . 121 192 . 125 . 41 . 1159 200 Ramming 5 | . . . . . . 5 . . . . . . . . Kinetic 3684 | . 373 708 . . . 1079 847 . 217 . . . . 460 Thermal 13329 | . 352 1273 384 . 540 2739 2693 . 555 1443 1190 417 456 1287 Explosive 919 | . . . 171 . . . . . . 598 . 150 . . Electromagnetic . | . . . . . . . . . . . . . . . Impact . | . . . . . . . . . . . . . . . Slashing 1838 | . . . . . . 121 192 . 125 . 41 . 1159 200 Piercing . | . . . . . . . . . . . . . . . Highest Corruption 20 | . . . . . . . 4 19 20 5 5 10 10 10 Average Corruption 7 | . . . . . . . 2 11 19 4 5 5 10 6 Corruption Purged . | . . . . . . . . . . . . . . . Corruption Blocked . | . . . . . . . . . . . . . . . Effects 141 | . . . . . . . 29 5 37 9 29 11 11 10 Message Errors 33 | . . . . . . . 4 1 12 1 6 3 4 2 Matter Fused 37 | . . . . . . . 10 1 7 1 12 3 2 1 Heat Flow Errors 21 | . . . . . . . 3 1 7 2 4 2 1 1 Energy Discharges 19 | . . . . . . . 5 . 3 1 2 1 4 3 Parts Rejected 1 | . . . . . . . . 1 . . . . . . Data Loss (minor) 7 | . . . . . . . 3 . 1 . 2 . . 1 Data Loss (major) 6 | . . . . . . . 1 . 1 2 . 1 . 1 Misfires 3 | . . . . . . . 1 . . . 2 . . . Alerts 2 | . . . . . . . 1 1 . . . . . . Misdirections 1 | . . . . . . . . . . . . . . 1 Weapon Failures 11 | . . . . . . . 1 . 6 2 1 1 . . Overload Shots 1 | . . . . . . . . . . . . . . 1 Overflow Damage 561 | . . . . . . 60 18 . 38 23 . . 396 26 Projectiles . | . . . . . . . . . . . . . . . Explosions 23 | . . . . . . . . . . 23 . . . . Melee 538 | . . . . . . 60 18 . 38 . . . 396 26 Knockbacks . | . . . . . . . . . . . . . . . Impact . | . . . . . . . . . . . . . . . Kinetic . | . . . . . . . . . . . . . . . Secondary . | . . . . . . . . . . . . . . . Self-Inflicted Damage . | . . . . . . . . . . . . . . . Shots . | . . . . . . . . . . . . . . . Rammed 1 | . . . . . . 1 . . . . . . . . Targets Rammed 1 | . . . . . . 1 . . . . . . . . Kicked . | . . . . . . . . . . . . . . . Crushed . | . . . . . . . . . . . . . . . Highest Temperature 438 | . 96 198 128 . 234 252 307 228 277 378 407 342 312 438 Average Temperature 78 | . 35 56 49 . 93 57 69 120 81 94 99 101 154 124 Received Heat Transfer 4036 | . 192 681 42 . 234 522 525 . 162 348 112 76 54 1088 Effects 8 | . . . . . . . . . . . 3 . 2 3 Shutdowns 1 | . . . . . . . . . . . . . . 1 Energy Bleed 2 | . . . . . . . . . . . . . 2 . Interference 3 | . . . . . . . . . . . 2 . . 1 Matter Decay 1 | . . . . . . . . . . . 1 . . . Damage (minor) 1 | . . . . . . . . . . . . . . 1 Siege Activations . | . . . . . . . . . . . . . . . Robots Corrupted . | . . . . . . . . . . . . . . . Combat Hostiles . | . . . . . . . . . . . . . . . Parts Fried 1 | . . . . . . . . . . . . 1 . . Impact Corruptions . | . . . . . . . . . . . . . . . Robots Melted 4 | . . . . . . 1 . . . 1 1 . 1 . Combat Hostiles 3 | . . . . . . 1 . . . . 1 . 1 . Parts Melted 74 | . 3 2 2 . 4 20 17 . 3 9 4 1 2 7 Heat Transferred 29930 | . 800 2886 1036 . 1332 6882 5983 . 1295 3199 2693 854 740 2230 Parts Sabotaged . | . . . . . . . . . . . . . . . Parts Stolen . | . . . . . . . . . . . . . . . Parts Stripped . | . . . . . . . . . . . . . . . Power Chain Reactions . | . . . . . . . . . . . . . . . Missiles Intercepted . | . . . . . . . . . . . . . . . Alert | -11 -10 -9 -9 -9 -8 -8 -7 -7 -7 -6 -6 -6 -6 -6 ------- Run | Scr Mat Mat Min Exi Min Mat Fac Was Fac Fac Ext Cet Arc Hub Peak Influence 884 | . 299 544 419 . 120 815 848 296 382 393 833 884 629 747 Initial 460 | . . 62 179 . . 46 354 296 207 99 192 460 353 219 Average 387 | . 191 275 238 . 65 497 528 296 231 162 400 662 590 587 Maximum Alert Level 3 | . 1 2 2 . . 3 3 1 1 1 3 3 2 3 Low Security (%) 23 | 100 56 49 14 . 100 11 . . 20 61 19 . . . Level 1 36 | . 43 14 78 . . 35 33 100 79 38 44 . 4 4 Level 2 23 | . . 35 6 . . 14 40 . . . 14 76 95 85 Level 3 16 | . . . . . . 39 25 . . . 21 23 . 10 Level 4 . | . . . . . . . . . . . . . . . Level 5 . | . . . . . . . . . . . . . . . High Security . | . . . . . . . . . . . . . . . Max Security . | . . . . . . . . . . . . . . . Squads Dispatched 35 | . 3 2 . . . 7 10 . 1 6 1 . . 5 Investigation 12 | . 2 . . . . 2 3 . . 3 . . . 2 Extermination 5 | . . . . . . . 3 . 1 1 . . . . Reinforcement 16 | . 1 1 . . . 5 4 . . 2 1 . . 2 Assault 2 | . . 1 . . . . . . . . . . . 1 Garrison . | . . . . . . . . . . . . . . . Intercept . | . . . . . . . . . . . . . . . Searches Triggered . | . . . . . . . . . . . . . . . Construction Impeded 1 | . . . . . . . . . . . 1 . . . Haulers Reinforced 2 | . . . . . . . 1 . . . . . . 1 Active Scanning Responses . | . . . . . . . . . . . . . . . Cargo Convoy Interrupts . | . . . . . . . . . . . . . . . Stealth | -11 -10 -9 -9 -9 -8 -8 -7 -7 -7 -6 -6 -6 -6 -6 --------- Run | Scr Mat Mat Min Exi Min Mat Fac Was Fac Fac Ext Cet Arc Hub Distress Signals 17 | . 1 1 . . . 5 2 . . . 2 2 . 4 Communications Jammed . | . . . . . . . . . . . . . . . Distress Signals . | . . . . . . . . . . . . . . . Times Spotted 291 | . 22 37 9 . 6 58 45 3 8 21 22 14 10 36 Peak Tracking Total 9 | . 4 6 4 . 3 5 6 3 4 9 5 5 2 8 Tactical Retreats 16 | . 3 2 . . . 4 2 . 1 2 . . . 2 Traps | -11 -10 -9 -9 -9 -8 -8 -7 -7 -7 -6 -6 -6 -6 -6 ------- Run | Scr Mat Mat Min Exi Min Mat Fac Was Fac Fac Ext Cet Arc Hub Traps Triggered 14 | . 2 1 . . . . 4 . 1 2 . . . 4 Indirectly . | . . . . . . . . . . . . . . . Trap Hack Attempts . | . . . . . . . . . . . . . . . Triggered . | . . . . . . . . . . . . . . . Disarmed . | . . . . . . . . . . . . . . . Reprogrammed . | . . . . . . . . . . . . . . . Reused . | . . . . . . . . . . . . . . . Traps Extracted . | . . . . . . . . . . . . . . . Installed . | . . . . . . . . . . . . . . . Triggered . | . . . . . . . . . . . . . . . Machines | -11 -10 -9 -9 -9 -8 -8 -7 -7 -7 -6 -6 -6 -6 -6 ---------- Run | Scr Mat Mat Min Exi Min Mat Fac Was Fac Fac Ext Cet Arc Hub Machines Disabled 15 | . . 1 1 . . 2 1 . . . 4 . 3 3 Max in Single Turn 1 | . . 1 1 . . 1 1 . . . . . 1 1 Garrison Access 3 | . . . . . . 1 . . . 1 . . . 1 Machines Sabotaged . | . . . . . . . . . . . . . . . Garrisons Compromised . | . . . . . . . . . . . . . . . Overloaded Fab Kills . | . . . . . . . . . . . . . . . Hacking | -11 -10 -9 -9 -9 -8 -8 -7 -7 -7 -6 -6 -6 -6 -6 --------- Run | Scr Mat Mat Min Exi Min Mat Fac Was Fac Fac Ext Cet Arc Hub Machines Accessed 57 | . 9 6 . 1 . 12 11 . 4 7 3 2 . 2 Terminals 41 | . 7 6 . . . 8 7 . 3 4 3 2 . 1 Fabricators 2 | . . . . . . . 1 . . 1 . . . . Repair Stations 6 | . 1 . . . . 2 1 . 1 1 . . . . Recycling Units 2 | . 1 . . . . 1 . . . . . . . . Scanalyzers 1 | . . . . . . . 1 . . . . . . . Garrison Access 4 | . . . . . . 1 1 . . 1 . . . 1 Total Hacks 150 | . 21 23 . 1 . 41 29 . 8 16 5 2 . 4 Successful 63 | . 7 11 . 1 . 16 13 . 3 8 3 1 . . Failed 86 | . 13 12 . . . 25 16 . 5 8 2 1 . 4 Catastrophic 16 | . 3 1 . . . 2 3 . 3 3 . . . 1 Database Lockouts 1 | . 1 . . . . . . . . . . . . . Manual 84 | . 16 21 . . . 21 13 . 2 8 . 1 . 2 Terminals 109 | . 17 23 . . . 26 18 . 7 9 5 2 . 2 Fabricators 6 | . . . . . . . 3 . . 3 . . . . Repair Stations 18 | . 3 . . . . 10 1 . 1 3 . . . . Recycling Units 4 | . 1 . . . . 3 . . . . . . . . Scanalyzers 5 | . . . . . . . 5 . . . . . . . Garrison Access 7 | . . . . . . 2 2 . . 1 . . . 2 Terminal Hacks 32 | . 3 10 . 1 . 5 6 . 2 1 3 1 . . Record 1 | . . . . 1 . . . . . . . . . . Part Schematic 7 | . 2 3 . . . . 2 . . . . . . . Robot Analysis 7 | . 1 4 . . . 1 1 . . . . . . . Open Door 4 | . . . . . . . . . . . 3 1 . . Branch Access Points 4 | . . 1 . . . 1 1 . 1 . . . . . Terminal Index 1 | . . . . . . . . . . 1 . . . . Recycling Unit Index 1 | . . . . . . 1 . . . . . . . . Locate Traps 2 | . . . . . . 1 . . 1 . . . . . Hauler Manifests 1 | . . 1 . . . . . . . . . . . . Zone Layout 4 | . . 1 . . . 1 2 . . . . . . . Fabricator Hacks 2 | . . . . . . . . . . 2 . . . . Network Status 1 | . . . . . . . . . . 1 . . . . Load Schematic 1 | . . . . . . . . . . 1 . . . . Repair Station Hacks 12 | . 2 . . . . 8 . . . 2 . . . . Scan Component 6 | . 1 . . . . 4 . . . 1 . . . . Repair 6 | . 1 . . . . 4 . . . 1 . . . . Recycling Unit Hacks . | . . . . . . . . . . . . . . . Scanalyzer 4 | . . . . . . . 4 . . . . . . . Insert Component 2 | . . . . . . . 2 . . . . . . . Analyze 2 | . . . . . . . 2 . . . . . . . Garrison Access Hacks 2 | . . . . . . 1 . . . 1 . . . . Seal Access 2 | . . . . . . 1 . . . 1 . . . . Unauthorized Hacks 11 | . 2 1 . . . 2 3 . 1 2 . . . . Terminals 9 | . 1 1 . . . 2 3 . 1 1 . . . . Track 1 | . . . . . . . 1 . . . . . . . Botnet 8 | . 1 1 . . . 2 2 . 1 1 . . . . Fabricators 1 | . . . . . . . . . . 1 . . . . Recompile 1 | . . . . . . . . . . 1 . . . . Repair Stations . | . . . . . . . . . . . . . . . Recycling Units 1 | . 1 . . . . . . . . . . . . . Mask 1 | . 1 . . . . . . . . . . . . . Scanalyzers . | . . . . . . . . . . . . . . . Garrison Access . | . . . . . . . . . . . . . . . Data Cores Recovered . | . . . . . . . . . . . . . . . Used . | . . . . . . . . . . . . . . . Hacking Detections 50 | . 9 5 . . . 11 11 . 4 5 3 . . 2 Full Trace Events 11 | . 3 . . . . 2 2 . . 2 . . . 2 Feedback Events . | . . . . . . . . . . . . . . . Feedback Blocked . | . . . . . . . . . . . . . . . Robot Schematics Acquired . | . . . . . . . . . . . . . . . Robots Built . | . . . . . . . . . . . . . . . Authchips . | . . . . . . . . . . . . . . . Time . | . . . . . . . . . . . . . . . Total Robot Build Rating . | . . . . . . . . . . . . . . . Part Schematics Acquired 8 | . 2 3 . . . . 3 . . . . . . . Parts Built . | . . . . . . . . . . . . . . . Authchips . | . . . . . . . . . . . . . . . Time . | . . . . . . . . . . . . . . . Total Part Build Rating . | . . . . . . . . . . . . . . . Parts Repaired 6 | . 1 . . . . 4 . . . 1 . . . . Time 266 | . 26 . . . . 218 . . . 22 . . . . Parts Recycled . | . . . . . . . . . . . . . . . Recycled Matter . | . . . . . . . . . . . . . . . Retrieved Matter . | . . . . . . . . . . . . . . . Retrieved Components . | . . . . . . . . . . . . . . . Parts Scanalyzed 2 | . . . . . . . 2 . . . . . . . Part Schematics Acquired 1 | . . . . . . . 1 . . . . . . . Parts Damaged . | . . . . . . . . . . . . . . . Bothacking | -11 -10 -9 -9 -9 -8 -8 -7 -7 -7 -6 -6 -6 -6 -6 ------------ Run | Scr Mat Mat Min Exi Min Mat Fac Was Fac Fac Ext Cet Arc Hub Used RIF Installer . | . . . . . . . . . . . . . . . Robots Hacked 1 | . . . . . . . . . . . . . 1 . Non-combat . | . . . . . . . . . . . . . . . Combat 1 | . . . . . . . . . . . . . 1 . Robot Hacks Applied 1 | . . . . . . . . . . . . . 1 . parse_system 1 | . . . . . . . . . . . . . 1 . Relay Couplers Released 1 | . . . . . . . . . . . . . . 1 Machine Destruction 1 | . . . . . . . . . . . . . . 1 Fabnet Peak Effective % . | . . . . . . . . . . . . . . . Robots Rewired 11 | . . . . . . . . . . . 11 . . . Allies Hacked . | . . . . . . . . . . . . . . . Hacks Repelled . | . . . . . . . . . . . . . . . Allies | -11 -10 -9 -9 -9 -8 -8 -7 -7 -7 -6 -6 -6 -6 -6 -------- Run | Scr Mat Mat Min Exi Min Mat Fac Was Fac Fac Ext Cet Arc Hub Total Allies 20 | . . . . . . . . . . . 15 5 . . Largest Group 15 | . . . . . . . . . . . 15 9 3 2 Highest-Rated Group 737 | . . . . . . . . . . . 566 737 344 185 Highest-Rated Ally 159 | . . . . . . . . . . . 159 159 159 96 Total Orders . | . . . . . . . . . . . . . . . Ally Attacks 250 | . . . . . . . . . . . 168 59 18 5 Total Damage 6477 | . . . . . . . . . . . 3990 1656 689 142 Kills 42 | . . . . . . . . . . . 26 12 2 2 Allies Corrupted . | . . . . . . . . . . . . . . . Allies Melted . | . . . . . . . . . . . . . . . Intel | -11 -10 -9 -9 -9 -8 -8 -7 -7 -7 -6 -6 -6 -6 -6 ------- Run | Scr Mat Mat Min Exi Min Mat Fac Was Fac Fac Ext Cet Arc Hub Robot Analysis Total 7 | . 1 4 . . . 1 1 . . . . . . . Derelict Logs Recovered 1 | . . . 1 . . . . . . . . . . . Drone Launches . | . . . . . . . . . . . . . . . Drone Recoveries . | . . . . . . . . . . . . . . . Exploration | -11 -10 -9 -9 -9 -8 -8 -7 -7 -7 -6 -6 -6 -6 -6 ------------- Run | Scr Mat Mat Min Exi Min Mat Fac Was Fac Fac Ext Cet Arc Hub Turns Passed 13132 | 27 1016 1636 873 441 186 3237 1842 156 782 783 965 340 386 462 Spaces Moved 6839 | 38 523 716 461 260 60 1339 1165 108 520 463 562 223 206 195 Core 264 | 38 220 . . . . . . . . . . . . 6 Treads 3017 | . 303 716 461 260 60 1217 . . . . . . . . Legs 3558 | . . . . . . 122 1165 108 520 463 562 223 206 189 Wheels . | . . . . . . . . . . . . . . . Hover . | . . . . . . . . . . . . . . . Flight . | . . . . . . . . . . . . . . . Fastest Speed 50 | 50 50 170 170 170 170 166 127 127 127 120 120 120 120 50 Average Speed 149 | 50 155 176 170 170 202 183 127 127 129 127 120 120 120 123 Slowest Speed 250 | 50 240 250 250 170 250 250 130 127 197 190 190 120 120 190 Overloaded Moves . | . . . . . . . . . . . . . . . Propulsion Burnouts . | . . . . . . . . . . . . . . . Robots Hopped . | . . . . . . . . . . . . . . . Cave-ins Triggered . | . . . . . . . . . . . . . . . Exploration Rate (%) 52 | 3 88 67 72 67 19 93 36 64 14 14 65 83 87 20 Regions Visited 14 Branch Regions 7 Pre-discovered Areas 1 | . . . . 1 . . . . . . . . . . Known Exits Taken 2 | . . 1 . . 1 . . . . . . . . . Unknown Exits Taken 10 | 1 1 . 1 1 . 1 . . 1 1 1 1 1 . Scrap Searched 2 | . . . 2 . . . . . . . . . . . Spaces Dug 18 | . . . . . . 3 7 . . 5 . . . 3 Terrain Destroyed 84 | . . . 15 . . 13 7 . . 27 . 14 1 7 Melee 18 | . . . . . . 3 7 . . 5 . . . 3 Projectile 10 | . . . . . . . . . . . . 5 1 4 AOE 56 | . . . 15 . . 10 . . . 22 . 9 . . Terrain Rammed . | . . . . . . . . . . . . . . . Walls Destroyed . | . . . . . . . . . . . . . . . Machines Disabled . | . . . . . . . . . . . . . . . Actions | -11 -10 -9 -9 -9 -8 -8 -7 -7 -7 -6 -6 -6 -6 -6 --------- Run | Scr Mat Mat Min Exi Min Mat Fac Was Fac Fac Ext Cet Arc Hub Total 8703 | 43 642 944 516 259 86 1912 1352 126 583 568 797 269 303 303 Wait 818 | . 57 70 29 . 1 389 47 17 17 11 87 18 57 18 Move 6826 | 37 522 715 460 259 59 1338 1165 107 519 462 561 222 205 195 Hop . | . . . . . . . . . . . . . . . Pick Up 86 | 3 11 20 2 . 1 17 8 . 4 12 4 1 2 1 Fast Attach 79 | 3 4 11 . . 1 12 7 1 4 12 3 6 3 12 Attach 35 | . 3 3 . . 3 5 7 . 2 4 1 . 1 6 Detach 15 | . . 4 . . . 1 4 . 1 2 . . 1 2 Swap 77 | . . 11 4 . . 11 12 1 6 6 10 3 3 10 Drop 110 | . 2 29 3 . 1 22 11 . 6 15 10 7 4 . Fire 504 | . 43 81 18 . 20 111 77 . 21 37 22 12 12 50 Melee 48 | . . . . . . 5 10 . 3 5 1 . 15 9 Ram . | . . . . . . . . . . . . . . . Kick . | . . . . . . . . . . . . . . . Crush 1 | . . . . . . 1 . . . . . . . . Escape Stasis 6 | . . . . . . . 4 . . 2 . . . . Rewire 98 | . . . . . . . . . . . 98 . . . Trap . | . . . . . . . . . . . . . . . Miscellaneous . | . . . . . . . . . . . . . . . Route ------- -11/Scrapyard -10/Materials (discovered 4 exits: *Mat x3 / [*Min]) -9/Materials (discovered 3 exits: *Mat x2 / *Min) -9/Mines (discovered 3 exits: *Mat x2 / *Exi) -9/Exiles -8/Mines -8/Materials (discovered 2 exits: *Fac x2) -7/Factory (discovered 4 exits: *Fac / *Sto / *Low x2) -7/Waste -7/Factory (discovered 5 exits: *Fac / Sto x2 / Low x2) -6/Factory (discovered 2 exits: [*Fac] / *Ext) -6/Extension (discovered 2 exits: [*Fac] / *Cet) -6/Cetus (discovered 2 exits: [*Fac] / [*Arc]) -6/Archives (discovered 3 exits: [*Fac] / *Hub x2) -6/Hub_04(d) (discovered 1 exit: [Fac]) History --------- Turn | Location | Event 9 | -11/Scrapyard | Discovered new exit (range 15) 28 | -11/Scrapyard | Entered Materials 262 | -10/Materials | Discovered new exit (range 9) 327 | -10/Materials | Build established: Mutant 346 | -10/Materials | Repaired Lgt. Treads 365 | -10/Materials | Discovered new exit (range 7) 491 | -10/Materials | Discovered new exit (range 16) 844 | -10/Materials | Central database locked down 989 | -10/Materials | Discovered new exit (range 3) 1044 | -10/Materials | Entered another Materials area 1044 | -9/Materials | Evolved 2 slots: Utility x2 1424 | -9/Materials | Discovered new exit (range 4) 1583 | -9/Materials | Build established: Scavenger-Mutant 1831 | -9/Materials | Discovered new exit (range 5) 1977 | -9/Materials | Identified exit to Mines 1980 | -9/Materials | Build established: Mutant 2041 | -9/Materials | Core integrity fell below 50% 2644 | -9/Materials | First assault squad dispatched 2680 | -9/Materials | Entered Mines 2800 | -9/Mines | Discovered new exit (range 7) 2893 | -9/Mines | Assembled infested the area 2931 | -9/Mines | Identified exit to Materials 2931 | -9/Mines | Joined a pair of Derelicts in attacking an 0b10 outpost 3319 | -9/Mines | Discovered new exit (range 5) 3553 | -9/Mines | Entered Exiles 3594 | -9/Exiles | Met 8R-AWN 3623 | -9/Exiles | Met EX-HEX 3689 | -9/Exiles | Met EX-DEC 3698 | -9/Exiles | Learned location of Zion (-6) 3737 | -9/Exiles | Met EX-BIN 3843 | -9/Exiles | Visited The Gauntlet 3973 | -9/Exiles | Discovered new exit (range 14) 3994 | -9/Exiles | Entered Mines 4058 | -8/Mines | Lost 3 parts (2n1u) 4086 | -8/Mines | Discovered exit to Materials (range 7) 4095 | -8/Mines | Core integrity fell below 20% 4180 | -8/Mines | Entered Materials 4180 | -8/Materials | Evolved 2 slots: Propulsion x1, Weapon x1 4416 | -8/Materials | Discovered new exit (range 16) 4490 | -8/Materials | Build established: Tank 5597 | -8/Materials | Repaired Enh. Autogun 6027 | -8/Materials | Discovered new exit (range 16) 6254 | -8/Materials | Repaired Prc. Beam Rifle 6316 | -8/Materials | Repaired Enh. Autogun 6355 | -8/Materials | Repaired Deuterium Engine 6409 | -8/Materials | Core integrity fell below 50% 6623 | -8/Materials | Build established: Scavenger-Tank 7337 | -8/Materials | Build established: Mutant 7417 | -8/Materials | Entered Factory 7417 | -7/Factory | Evolved 2 slots: Propulsion x1, Utility x1 7513 | -7/Factory | Discovered new exit (range 11) 7703 | -7/Factory | Discovered new exit (range 14) 7754 | -7/Factory | Identified exit to Lower Caves 8318 | -7/Factory | Build established: Tank 8434 | -7/Factory | Identified exit to Storage 9025 | -7/Factory | Discovered new exit (range 9) 9259 | -7/Factory | Sucked down chute 9259 | -7/Factory | Entered Waste 9274 | -7/Waste | EMP discharged 9274 | -7/Waste | System corruption reached 10% 9298 | -7/Waste | Spotted C-40 Crusher 9327 | -7/Waste | Spotted C-40 Crusher 9328 | -7/Waste | Spotted C-40 Crusher 9355 | -7/Waste | Spotted C-40 Crusher 9366 | -7/Waste | Spotted C-40 Crusher 9371 | -7/Waste | Spotted C-40 Crusher 9374 | -7/Waste | EMP discharged 9401 | -7/Waste | Discovered new exit (range 12) 9415 | -7/Waste | Entered Factory 9530 | -7/Factory | Build established: Mutant 9848 | -7/Factory | Discovered new exit (range 13) 9914 | -7/Factory | Lost 3 parts (1p2u) 10197 | -7/Factory | Entered another Factory area 10197 | -6/Factory | Evolved 2 slots: Power x1, Propulsion x1 10623 | -6/Factory | Discovered new exit (range 6) 10692 | -6/Factory | Repaired Imp. Carbon-fiber Leg 10692 | -6/Factory | Discovered new exit (range 20) 10903 | -6/Factory | Lost 4 parts (1p2n1w) 10905 | -6/Factory | Destroyed 8 combat bots 10980 | -6/Factory | Entered Extension 11205 | -6/Extension | Rescued A7 11489 | -6/Extension | Rescued a captive Derelict 11490 | -6/Extension | Rescued a captive Derelict 11496 | -6/Extension | Rescued a captive Derelict 11686 | -6/Extension | Spotted B-75 Beast 11693 | -6/Extension | Destroyed B-75 Beast 11702 | -6/Extension | Spotted B-75 Beast 11719 | -6/Extension | Allies destroyed B-75 Beast 11820 | -6/Extension | Build established: Commander-Tank 11906 | -6/Extension | Discovered new exit (range 15) 11907 | -6/Extension | Discovered new exit (range 15) 11945 | -6/Extension | Entered Cetus 11945 | -6/Cetus | Accompanied by 7 allies (A7) 11950 | -6/Cetus | Acquired a Cetus Manufacturing Module code from A7 11962 | -6/Cetus | Spotted Cetus Guard 11962 | -6/Cetus | Spotted Cetus Guard 11964 | -6/Cetus | Spotted Cetus Guard 11969 | -6/Cetus | Allies destroyed Cetus Guard 11970 | -6/Cetus | Spotted Cetus Guard 11972 | -6/Cetus | Allies destroyed Cetus Guard 11975 | -6/Cetus | Allies destroyed Cetus Guard 11978 | -6/Cetus | Allies destroyed Cetus Guard 12030 | -6/Cetus | Started Cetus Manufacturing Module 12055 | -6/Cetus | Manufactured an Enhanced Grunt 12080 | -6/Cetus | Manufactured an Enhanced Grunt 12091 | -6/Cetus | Escorted A7 to Cetus Mainframe 12105 | -6/Cetus | Manufactured an Enhanced Grunt 12130 | -6/Cetus | Manufactured an Enhanced Grunt 12155 | -6/Cetus | Manufactured an Enhanced Grunt 12160 | -6/Cetus | Discovered new exit (range 15) 12172 | -6/Cetus | Build established: Scavenger-Tank 12183 | -6/Cetus | Spotted Cetus Guard 12184 | -6/Cetus | Spotted Cetus Guard 12187 | -6/Cetus | Spotted Cetus Guard 12189 | -6/Cetus | Spotted Cetus Guard 12196 | -6/Cetus | Allies destroyed Cetus Guard 12207 | -6/Cetus | Allies destroyed Cetus Guard 12208 | -6/Cetus | Allies destroyed Cetus Guard 12214 | -6/Cetus | Discovered new exit (range 15) 12217 | -6/Cetus | Allies destroyed Cetus Guard 12223 | -6/Cetus | System corruption reached 10% 12225 | -6/Cetus | Met Revision 17 12285 | -6/Cetus | Entered Archives 12285 | -6/Archives | Accompanied by 3 allies (A7) 12290 | -6/Archives | Received a hacking code to weaken MAIN.C 12359 | -6/Archives | Discovered new exit (range 13) 12394 | -6/Archives | Discovered new exit (range 14) 12506 | -6/Archives | Discovered new exit (range 16) 12671 | -6/Archives | Entered Hub_04(d) 12671 | -6/Hub_04(d) | Accompanied by 2 allies 12720 | -6/Hub_04(d) | Core integrity fell below 50% 12832 | -6/Hub_04(d) | Lost 3 parts (1n1u1w) 12987 | -6/Hub_04(d) | Lost 5 parts (1p1n1u2w) 13027 | -6/Hub_04(d) | Discovered new exit (range 20) 13090 | -6/Hub_04(d) | Core integrity fell below 20% 13113 | -6/Hub_04(d) | Lost 4 parts (1p1n2w) 13130 | -6/Hub_04(d) | Released all parts (4) 13133 | -6/Hub_04(d) | Destroyed by H-66 Slayer with Gauss Rifle Last Messages --------------- 13123_ U-05 Engineer suffers critical hit (Blast). 13123_ U-05 Engineer destroyed. 13125_ Knocked back. 13127_ Flak Gun destroyed. 13127_ Knocked back. 13128_ Acquired 32 matter. 13129_ Enh. Flexi-carbon Leg destroyed. 13129_ Knocked back. 13130_ Slug penetrates H-61 Shepherd. 13130_ Slug penetrates Wall. 13130_ Penetrated by Slug. 13130_ Hvy. Laser destroyed. 13130_ Knocked back. 13130_ Released Adv. Terrain Scan Processor. 13130_ Released Lrg. Storage Unit. 13130_ Released System Guard. 13130_ Released Flexi-carbon Leg. 13131_ U-05 Engineer builds a Wall. 13131_ Knocked back. 13133_ Penetrated by Slug. Map ----- +----------------------------------------------------+ | ?????????????????????????????????????????????????? | | ?????????????????????????????????????????????????? | | ?????????????????????????????????????????????????? | | ?????????????????????????????????????????????????? | | ?????????????????????????????????????????????????? | | ?????????????????????????????????????????????????? | | ??????????????????????????? ?????????????????????? | | ??????????????????